fUST/lending_fUST_20240927
["ID","MTS","AMOUNT","RATE_DAILY","PERIOD"]
[339277296,1727433061890,-172.54,0.000231,31]
[339277297,1727433061903,-172.54,0.000231,31]
[339277298,1727433061912,-453.59290944,0.000231,4]
[339277299,1727433061921,-453.59290944,0.000231,4]
[339277300,1727433061931,-151.0,0.00023132,2]
[339277301,1727433061940,-160.0,0.0002315,3]
[339277302,1727433061951,-1111.0,0.00023233,120]
[339277303,1727433061962,-753.36,0.00023287,2]
[339277304,1727433061971,-1740.82,0.00023287,2]
[339277305,1727433061982,-1645.61,0.00023287,2]
[339277306,1727433061992,-500.0,0.00023287,2]
[339277307,1727433062001,-500.0,0.00023287,2]
[339277308,1727433062012,-559.5,0.00023287,2]
[339277309,1727433062021,-500.0,0.00023287,2]
[339277310,1727433062031,-500.0,0.00023287,2]
[339277311,1727433062041,-500.0,0.00023287,2]
[339277312,1727433062051,-500.0,0.00023287,2]
[339277313,1727433062061,-500.0,0.00023287,2]
[339277314,1727433062070,-500.0,0.00023287,2]
[339277315,1727433062080,-500.0,0.00023287,2]
[339277316,1727433062089,-500.0,0.00023287,2]
[339277317,1727433062098,-500.0,0.00023287,2]
[339277318,1727433062107,-500.0,0.00023287,2]
[339277319,1727433062117,-500.0,0.00023287,2]
[339277320,1727433062127,-500.0,0.00023287,2]
[339277321,1727433062137,-553.70719363,0.00023287,2]
[339277322,1727433062146,-407.13577052,0.00023287,2]
[339277323,1727433062156,-1224.84,0.00023287,2]
[339277324,1727433062166,-1590.93,0.00023287,2]
[339277325,1727433062176,-964.57,0.00023287,2]
[339277326,1727433062186,-15175.53,0.00023287,2]
[339277327,1727433062195,-1127.51,0.00023287,2]
[339277328,1727433062205,-2768.04,0.00023287,2]
[339277329,1727433062214,-517.49,0.00023287,2]
[339277330,1727433062223,-525.2,0.00023287,2]
[339277331,1727433062232,-713.0,0.00023288,2]
[339277332,1727433062241,-387.95003296,0.00023288,2]
[339277333,1727433062250,-453.59290944,0.0002332,4]
[339277334,1727433062259,-453.59290944,0.0002332,4]
[339277335,1727433062268,-500.0,0.00023356,2]
[339277336,1727433062277,-453.59290944,0.0002354,4]
[339277337,1727433062286,-453.59290944,0.0002354,4]
[339277338,1727433062295,-753.36,0.00023561,2]
[339277339,1727433062304,-1740.82,0.00023561,2]
[339277340,1727433062313,-1645.61,0.00023561,2]
[339277341,1727433062323,-420.11495739,0.00023561,2]
[339277342,1727433062332,-500.0,0.00023561,2]
[339277343,1727433062341,-559.5,0.00023561,2]
[339277344,1727433062351,-500.0,0.00023561,2]
[339277345,1727433062361,-1224.84,0.00023561,2]
[339277346,1727433062371,-1590.93,0.00023561,2]
[339277347,1727433062380,-964.57,0.00023561,2]
[339277348,1727433062389,-15175.53,0.00023561,2]
[339277349,1727433062399,-1127.51,0.00023561,2]
[339277350,1727433062409,-2768.04,0.00023561,2]
[339277351,1727433062420,-517.49,0.00023561,2]
[339277352,1727433062430,-525.2,0.00023561,2]
[339277353,1727433062440,-713.0,0.00023562,2]
[339277354,1727433062451,-151.0,0.00023599,2]
[339277355,1727433062460,-1513.11986034,0.00023753,2]
[339277356,1727433062470,-3000.0,0.00023753,2]
[339277357,1727433062479,-453.59290944,0.0002376,4]
[339277358,1727433062488,-453.59290944,0.0002376,4]
[339277359,1727433062497,-391.9673275,0.000238,2]
[339277360,1727433062507,-753.36,0.00023835,2]
[339277361,1727433062516,-1740.82,0.00023835,2]
[339277362,1727433062528,-1645.61,0.00023835,2]
[339277363,1727433062540,-500.0,0.00023835,2]
[339277364,1727433062551,-559.5,0.00023835,2]
[339277365,1727433062561,-500.0,0.00023835,2]
[339277366,1727433062571,-1224.84,0.00023835,2]
[339277367,1727433062582,-1590.93,0.00023835,2]
[339277368,1727433062592,-964.57,0.00023835,2]
[339277369,1727433062603,-15175.53,0.00023835,2]
[339277370,1727433062614,-1127.51,0.00023835,2]
[339277371,1727433062624,-2768.04,0.00023835,2]
[339277372,1727433062633,-517.49,0.00023835,2]
[339277373,1727433062643,-525.2,0.00023835,2]
[339277374,1727433062653,-713.0,0.00023836,2]
[339277375,1727433062663,-453.59290944,0.0002398,4]
[339277376,1727433062671,-453.59290944,0.0002398,4]
[339277377,1727433062682,-290.0,0.00024,30]
[339277378,1727433062692,-500.0,0.00024,2]
[339277379,1727433062702,-250.0,0.00024,2]
[339277380,1727433062712,-2025.58,0.00024,3]
[339277381,1727433062723,-151.0,0.00024066,2]
[339277382,1727433062733,-753.36,0.00024109,2]
[339277383,1727433062743,-1740.82,0.00024109,2]
[339277384,1727433062753,-1645.61,0.00024109,2]
[339277385,1727433062763,-500.0,0.00024109,2]
[339277386,1727433062774,-559.5,0.00024109,2]
[339277387,1727433062786,-500.0,0.00024109,2]
[339277388,1727433062797,-1224.84,0.00024109,2]
[339277389,1727433062808,-1590.93,0.00024109,2]
[339277390,1727433062820,-964.57,0.00024109,2]
[339277391,1727433062830,-15175.53,0.00024109,2]
[339277392,1727433062841,-1127.51,0.00024109,2]
[339277393,1727433062851,-2768.04,0.00024109,2]
[339277394,1727433062860,-517.49,0.00024109,2]
[339277395,1727433062870,-525.2,0.00024109,2]
[339277396,1727433062879,-713.0,0.0002411,2]
[339277397,1727433062889,-2905.42090853,0.00024141,2]
[339277398,1727433062899,-713.0,0.00024164,2]
[339277399,1727433062910,-256.0,0.00024164,2]
[339277400,1727433062921,-345.0,0.00024164,2]
[339277401,1727433062931,-172.54,0.000242,31]
[339277402,1727433062943,-172.54,0.000242,31]
[339277403,1727433062954,-172.54,0.000242,31]
[339277404,1727433062963,-172.54,0.000242,31]
[339277405,1727433062974,-172.54,0.000242,31]
[339277406,1727433062983,-172.54,0.000242,31]
[339277407,1727433062993,-172.54,0.000242,31]
[339277408,1727433063002,-172.54,0.000242,31]
[339277409,1727433063011,-172.54,0.000242,31]
[339277410,1727433063021,-172.54,0.000242,31]
[339277411,1727433063030,-172.54,0.000242,31]
[339277412,1727433063040,-172.54,0.000242,31]
[339277413,1727433063049,-172.54,0.000242,31]
[339277414,1727433063134,-172.54,0.000242,31]
[339277415,1727433063144,-172.54,0.000242,31]
[339277416,1727433063154,-172.54,0.000242,31]
[339277417,1727433063163,-172.54,0.000242,31]
[339277418,1727433063173,-172.54,0.000242,31]
[339277419,1727433063182,-172.54,0.000242,31]
[339277420,1727433063192,-172.54,0.000242,31]
[339277421,1727433063202,-172.54,0.000242,31]
[339277422,1727433063212,-172.54,0.000242,31]
[339277423,1727433063222,-172.54,0.000242,31]
[339277424,1727433063232,-172.54,0.000242,31]
[339277425,1727433063241,-753.36,0.00024383,2]
[339277426,1727433063250,-1740.82,0.00024383,2]
[339277427,1727433063259,-1645.61,0.00024383,2]
[339277428,1727433063270,-474.07926372,0.00024383,2]
[339277429,1727433063280,-559.5,0.00024383,2]
[339277430,1727433063289,-500.0,0.00024383,2]
[339277431,1727433063300,-1224.84,0.00024383,2]
[339277432,1727433063310,-1590.93,0.00024383,2]
[339277433,1727433063320,-964.57,0.00024383,2]
[339277434,1727433063329,-15175.53,0.00024383,2]
[339277435,1727433063340,-1127.51,0.00024383,2]
[339277436,1727433063349,-2768.04,0.00024383,2]
[339277437,1727433063358,-517.49,0.00024383,2]
[339277438,1727433063368,-525.2,0.00024383,2]
[339277439,1727433063377,-713.0,0.00024384,2]
[339277440,1727433063387,-200.0,0.000245,3]
[339277441,1727433063397,-160.0,0.000245,4]
[339277442,1727433063407,-160.82507759,0.000245,5]
[339277443,1727433063417,-151.0,0.00024533,2]
[339277444,1727433063426,-234.07834503,0.00024548,2]
[339277445,1727433063437,-160.0,0.00024656,2]
[339277446,1727433063447,-309.20853301,0.00024656,2]
[339277447,1727433063457,-160.0,0.00024656,2]
[339277448,1727433063467,-753.36,0.00024657,2]
[339277449,1727433063476,-1740.82,0.00024657,2]
[339277450,1727433063486,-1645.61,0.00024657,2]
[339277451,1727433063496,-600.0,0.00024657,3]
[339277452,1727433063507,-598.70113145,0.00024657,3]
[339277453,1727433063517,-559.5,0.00024657,2]
[339277454,1727433063527,-170.13680779,0.00024657,2]
[339277455,1727433063537,-1224.84,0.00024657,2]
[339277456,1727433063546,-1590.93,0.00024657,2]
[339277457,1727433063556,-964.57,0.00024657,2]
[339277458,1727433063566,-15175.53,0.00024657,2]
[339277459,1727433063577,-1127.51,0.00024657,2]
[339277460,1727433063586,-2768.04,0.00024657,2]
[339277461,1727433063596,-517.49,0.00024657,2]
[339277462,1727433063607,-525.2,0.00024657,2]
[339277463,1727433063616,-374.07,0.00024657,2]
[339277464,1727433063626,-374.07,0.00024657,2]
[339277465,1727433063635,-374.07,0.00024657,2]
[339277466,1727433063646,-374.07,0.00024657,2]
[339277467,1727433063655,-374.07,0.00024657,2]
[339277468,1727433063665,-374.07,0.00024657,2]
[339277469,1727433063674,-374.07,0.00024657,2]
[339277470,1727433063683,-374.07,0.00024657,2]
[339277471,1727433063693,-374.07,0.00024657,2]
[339277472,1727433063702,-374.07,0.00024657,2]
[339277473,1727433063712,-200.0,0.00024658,15]
[339277474,1727433063721,-372.776536,0.00024658,7]
[339277475,1727433063731,-372.776536,0.00024658,7]
[339277476,1727433063740,-372.776536,0.00024658,7]
[339277477,1727433063749,-372.776536,0.00024658,7]
[339277478,1727433063760,-372.776536,0.00024658,7]
[339277479,1727433063770,-372.776536,0.00024658,7]
[339277480,1727433063779,-372.776536,0.00024658,7]
[339277481,1727433063790,-372.776536,0.00024658,7]
[339277482,1727433063800,-372.776536,0.00024658,7]
[339277483,1727433063810,-372.776536,0.00024658,7]
[339277484,1727433063820,-372.776536,0.00024658,7]
[339277485,1727433063830,-372.776536,0.00024658,7]
[339277486,1727433063839,-372.776536,0.00024658,7]
[339277487,1727433063849,-372.776536,0.00024658,7]
[339277488,1727433063858,-372.776536,0.00024658,7]
[339277489,1727433063867,-372.776536,0.00024658,7]
[339277490,1727433063877,-372.776536,0.00024658,7]
[339277491,1727433063886,-372.776536,0.00024658,7]
[339277492,1727433063900,-372.776536,0.00024658,7]
[339277493,1727433063909,-372.776532,0.00024658,7]
[339277494,1727433063918,-660.0,0.00024658,2]
[339277495,1727433063928,-380.0,0.00024658,2]
[339277496,1727433063937,-200.0,0.00024658,2]
[339277497,1727433063948,-3500.0,0.00024677,2]
[339277498,1727433063958,-823.0,0.00024688,2]
[339277499,1727433063967,-221.74503956,0.000247,7]
[339277500,1727433063982,-753.36,0.00024931,2]
[339277501,1727433063992,-1740.82,0.00024931,2]
[339277502,1727433064002,-1645.61,0.00024931,2]
[339277503,1727433064011,-559.5,0.00024931,2]
[339277504,1727433064021,-1224.84,0.00024931,2]
[339277505,1727433064031,-1590.93,0.00024931,2]
[339277506,1727433064040,-964.57,0.00024931,2]
[339277507,1727433064051,-15175.53,0.00024931,2]
[339277508,1727433064061,-1127.51,0.00024931,2]
[339277509,1727433064070,-2768.04,0.00024931,2]
[339277510,1727433064080,-517.49,0.00024931,2]
[339277511,1727433064090,-525.2,0.00024931,2]
[339277512,1727433064099,-32979.72445095,0.00025,2]
[339277513,1727433064285,-176.40075785,0.00019042,2]
[339277514,1727433064294,-500.0,0.00019178,2]
[339277515,1727433064305,-303.002609,0.00019178,2]
[339277516,1727433064315,-303.002609,0.00019178,2]
[339277517,1727433064325,-500.0,0.00019452,2]
[339277518,1727433064335,-303.002609,0.00019452,2]
[339277519,1727433064344,-523.22,0.00019726,2]
[339277520,1727433064353,-374.07,0.00024657,2]
[339277521,1727433064363,-374.07,0.00024657,2]
[339277522,1727433064372,-374.07,0.00024657,2]
[339277523,1727433064382,-374.07,0.00024657,2]
[339277524,1727433064391,-374.07,0.00024657,2]
[339277525,1727433064401,-374.07,0.00024657,2]
[339277526,1727433064410,-374.07,0.00024657,2]
[339277527,1727433064419,-56.46333856,0.00024657,2]
[339277528,1727433064566,-176.40075785,0.00019077,2]
[339277529,1727433064575,-153.0,0.00019407,2]
[339277530,1727433064584,-303.002609,0.00019726,2]
[339277531,1727433064594,-303.002609,0.000198,2]
[339277532,1727433064603,-303.002609,0.00019999,2]
[339277533,1727433064693,-303.002609,0.0002,2]
[339277534,1727433064704,-303.002609,0.00020377,2]
[339277535,1727433064714,-303.002609,0.00020821,2]
[339277536,1727433064724,-303.002609,0.00021,2]
[339277537,1727433064733,-317.60666144,0.00024657,2]
[339277538,1727433064742,-374.07,0.00024657,2]
[339277539,1727433064752,-374.07,0.00024657,2]
[339277540,1727433064761,-374.07,0.00024657,2]
[339277541,1727433064771,-374.07,0.00024931,2]
[339277542,1727433064780,-1768.94512253,0.00025,2]
[339277543,1727433065322,-1714.97767763,0.00025,2]
[339277546,1727433109083,168.794523,0.00018077,2]
[339277547,1727433109796,259.97603228,0.00017579,2]
[339277589,1727434040139,-167.730595,0.00017251,2]
[339277590,1727434040163,-186.33175552,0.00017583,2]
[339277594,1727434153268,-300.0,0.00017582,2]
[339277595,1727434153291,-300.0,0.00017582,2]
[339277596,1727434153314,-313.66824448,0.00017583,2]
[339277597,1727434153339,-500.0,0.00017583,2]
[339277598,1727434153361,-500.0,0.00017583,2]
[339277599,1727434153384,-500.0,0.00017583,2]
[339277600,1727434153406,-500.0,0.00017583,2]
[339277601,1727434153431,-500.0,0.00017583,2]
[339277602,1727434153457,-500.0,0.00017583,2]
[339277603,1727434153480,-500.0,0.00017583,2]
[339277604,1727434153505,-500.0,0.00017583,2]
[339277605,1727434153527,-476.22477168,0.00017583,2]
[339277606,1727434153551,-500.0,0.00017583,2]
[339277607,1727434153576,-500.0,0.00017583,2]
[339277608,1727434153598,-500.0,0.00017583,2]
[339277609,1727434153621,-500.0,0.00017583,2]
[339277610,1727434153645,-500.0,0.00017583,2]
[339277611,1727434153667,-218.44755695,0.00017583,2]
[339277612,1727434153691,-500.0,0.00017583,2]
[339277613,1727434153714,-500.0,0.00017583,2]
[339277614,1727434153738,-500.0,0.00017583,2]
[339277615,1727434153762,-500.0,0.00017583,2]
[339277616,1727434153787,-500.0,0.00017583,2]
[339277617,1727434153811,-500.0,0.00017583,2]
[339277618,1727434153838,-499.99999999,0.00017583,2]
[339277619,1727434153860,-6605.35346545,0.00017584,2]
[339277620,1727434160102,-944.3425287,0.00017584,2]
[339277711,1727434238373,-39.34026117,0.000175,2]
[339277712,1727434238460,-160.65973883,0.000175,2]
[339277713,1727434238470,-300.0,0.00017583,2]
[339277714,1727434238479,-300.0,0.00017583,2]
[339277715,1727434238489,-17350.30400585,0.00017584,2]
[339277716,1727434238498,-270.801582,0.00017631,2]
[339277717,1727434238509,-235.3723892,0.00017826,2]
[339277718,1727434238518,-157.41270457,0.000189,3]
[339277719,1727434238528,-160.882851,0.00018904,2]
[339277720,1727434238537,-275.13608574,0.00019039,2]
[339277721,1727434238546,-500.0,0.00019039,2]
[339277722,1727434238555,-357.60528411,0.00019039,2]
[339277723,1727434238564,-929.15327749,0.0001904,2]
[339277724,1727434238574,-1425.96435494,0.00019078,2]
[339277726,1727434238583,-95.01862165,0.00019173,2]
[339277727,1727434238594,-404.98137835,0.00019173,2]
[339277728,1727434238603,-501.18527926,0.00019173,2]
[339277729,1727434238612,-500.0,0.00019173,2]
[339277730,1727434238622,-500.0,0.00019173,2]
[339277732,1727434238632,-601.77810704,0.00019177,2]
[339277734,1727434238643,-161.54418546,0.00019177,2]
[339277736,1727434238654,-255.96543965,0.00019177,2]
[339277737,1727434238663,-385.38799135,0.00019177,2]
[339277738,1727434238674,-114.61200865,0.00019177,2]
[339277739,1727434238684,-500.0,0.00019177,2]
[339277740,1727434238693,-500.0,0.00019177,2]
[339277741,1727434238704,-620.72374492,0.00019177,2]
[339277742,1727434238715,-590.99087283,0.00019177,2]
[339277743,1727434238726,-500.0,0.00019177,2]
[339277744,1727434238737,-500.0,0.00019177,2]
[339277745,1727434238747,-500.0,0.00019177,2]
[339277746,1727434238759,-500.0,0.00019177,2]
[339277747,1727434238769,-500.0,0.00019177,2]
[339277748,1727434238779,-171.24561165,0.00019177,2]
[339277749,1727434238789,-194.69295394,0.00019177,2]
[339277750,1727434238798,-215.66101197,0.00019177,2]
[339277751,1727434238807,-502.24952686,0.00019178,2]
[339277752,1727434238817,-500.0,0.00019178,2]
[339277753,1727434238827,-501.66673427,0.00019178,2]
[339277754,1727434238837,-605.97557299,0.00019178,2]
[339277755,1727434238847,-507.86377123,0.00019178,2]
[339277756,1727434238856,-500.0,0.00019178,2]
[339277757,1727434238865,-500.0,0.00019178,2]
[339277758,1727434238875,-506.8130447,0.00019178,2]
[339277759,1727434238886,-500.0,0.00019178,2]
[339277760,1727434238896,-500.0,0.00019178,2]
[339277761,1727434238906,-571.18858076,0.00019178,2]
[339277762,1727434238915,-500.0,0.00019178,2]
[339277763,1727434238924,-200.0,0.00019178,2]
[339277764,1727434238934,-500.0,0.00019178,2]
[339277765,1727434238943,-500.0,0.00019178,2]
[339277766,1727434238953,-500.0,0.00019178,2]
[339277767,1727434238962,-500.0,0.00019178,2]
[339277768,1727434238972,-500.0,0.00019178,2]
[339277769,1727434238982,-500.0,0.00019178,2]
[339277770,1727434238992,-516.77,0.00019178,2]
[339277771,1727434239004,-500.0,0.00019178,2]
[339277772,1727434239013,-500.0,0.00019178,2]
[339277773,1727434239023,-500.0,0.00019178,2]
[339277774,1727434239034,-500.0,0.00019178,2]
[339277775,1727434239043,-506.00711978,0.00019178,2]
[339277776,1727434239053,-503.70128654,0.00019178,2]
[339277777,1727434239063,-500.0,0.00019178,2]
[339277778,1727434239073,-506.94099607,0.00019178,2]
[339277779,1727434239082,-500.0,0.00019178,2]
[339277780,1727434239092,-481.33745673,0.00019178,2]
[339277781,1727434239102,-500.0,0.00019178,2]
[339277782,1727434239111,-504.43924134,0.00019178,2]
[339277783,1727434239121,-504.77009013,0.00019178,2]
[339277784,1727434239131,-500.0,0.00019178,2]
[339277785,1727434239142,-500.0,0.00019178,2]
[339277786,1727434239152,-500.0,0.00019178,2]
[339277787,1727434239162,-504.36913356,0.00019178,2]
[339277788,1727434239171,-1000.0,0.00019178,2]
[339277789,1727434239180,-504.301689,0.00019178,2]
[339277790,1727434239190,-500.0,0.00019178,2]
[339277791,1727434239199,-510.45469994,0.00019178,2]
[339277792,1727434239208,-612.42,0.00019178,2]
[339277793,1727434239217,-870.41,0.00019178,2]
[339277794,1727434239226,-1130.42,0.00019178,2]
[339277795,1727434239236,-7541.14,0.00019178,2]
[339277796,1727434239245,-500.0,0.00019178,2]
[339277797,1727434239256,-1268.69,0.00019178,2]
[339277798,1727434239266,-621.29322847,0.00019178,2]
[339277799,1727434239275,-506.94895857,0.00019178,2]
[339277800,1727434239286,-507.66008765,0.00019178,2]
[339277801,1727434239296,-500.0,0.00019178,2]
[339277802,1727434239307,-201.71243359,0.00019178,2]
[339277803,1727434239316,-500.0,0.00019178,2]
[339277804,1727434239325,-500.0,0.00019178,2]
[339277805,1727434239338,-502.31690782,0.00019178,2]
[339277806,1727434239359,-507.17430862,0.00019178,2]
[339277807,1727434239369,-259.03490477,0.00019178,2]
[339277808,1727434239380,-502.91876284,0.00019178,2]
[339277809,1727434239391,-500.0,0.00019178,2]
[339277810,1727434239401,-500.0,0.00019178,2]
[339277811,1727434239411,-500.0,0.00019178,2]
[339277812,1727434239421,-338.39572649,0.00019178,2]
[339277813,1727434239431,-500.0,0.00019178,2]
[339277814,1727434239441,-500.0,0.00019178,2]
[339277815,1727434239452,-500.0,0.00019178,2]
[339277816,1727434239463,-500.0,0.00019178,2]
[339277817,1727434239472,-502.60955855,0.00019178,2]
[339277818,1727434239481,-548.95000002,0.00019178,2]
[339277819,1727434239491,-273.31,0.00019178,2]
[339277820,1727434239501,-500.0,0.00019178,2]
[339277821,1727434239511,-490.0,0.00019178,2]
[339277822,1727434239521,-504.78427138,0.00019178,2]
[339277823,1727434239532,-500.0,0.00019178,2]
[339277824,1727434239542,-502.49725659,0.00019178,2]
[339277826,1727434239552,-510.47063791,0.00019178,2]
[339277827,1727434239563,-509.78686755,0.00019178,2]
[339277828,1727434239573,-691.57,0.00019178,2]
[339277829,1727434239583,-517.85197249,0.00019178,2]
[339277830,1727434239593,-500.0,0.00019178,2]
[339277831,1727434239602,-500.0,0.00019178,2]
[339277832,1727434239612,-503.80014309,0.00019178,2]
[339277834,1727434239622,-472.35053575,0.00019178,2]
[339277836,1727434239633,-928.04,0.00019178,2]
[339277838,1727434239645,-502.46784363,0.00019178,2]
[339277840,1727434239656,-289.20766326,0.00019178,2]
[339277841,1727434239666,-501.95821522,0.00019178,2]
[339277842,1727434239675,-163.39219,0.00019178,2]
[339277844,1727434239685,-162.323729,0.00019178,2]
[339277846,1727434239694,-420.0,0.00019193,2]
[339277848,1727434239705,-420.0,0.00019341,2]
[339277850,1727434239716,-1000.0,0.00019342,2]
[339277852,1727434239726,-419.27,0.00019412,3]
[339277853,1727434239735,-209.64,0.00019412,3]
[339277855,1727434239744,-628.93,0.00019412,3]
[339277857,1727434239754,-1005.00840712,0.00019422,2]
[339277859,1727434239763,-101222.135423,0.00019422,3]
[339277861,1727434239772,-67960.0563665,0.00019422,3]
[339277862,1727434239783,-101222.135423,0.00019432,3]
[339277864,1727434239793,-67960.0563665,0.00019432,3]
[339277866,1727434239805,-500.0,0.00019452,2]
[339277868,1727434239817,-500.0,0.00019452,2]
[339277870,1727434239829,-200.0,0.00019452,2]
[339277872,1727434239839,-500.0,0.00019452,2]
[339277874,1727434239849,-500.0,0.00019452,2]
[339277875,1727434239860,-500.0,0.00019452,2]
[339277876,1727434239871,-500.0,0.00019452,2]
[339277878,1727434239883,-500.0,0.00019452,2]
[339277880,1727434239894,-516.77,0.00019452,2]
[339277882,1727434239904,-500.0,0.00019452,2]
[339277884,1727434239914,-500.0,0.00019452,2]
[339277886,1727434239925,-500.0,0.00019452,2]
[339277888,1727434239936,-500.0,0.00019452,2]
[339277890,1727434239946,-500.0,0.00019452,2]
[339277892,1727434239960,-500.0,0.00019452,2]
[339277893,1727434239970,-500.0,0.00019452,2]
[339277895,1727434239980,-612.42,0.00019452,2]
[339277896,1727434239990,-870.41,0.00019452,2]
[339277898,1727434240001,-1130.42,0.00019452,2]
[339277900,1727434240011,-7541.14,0.00019452,2]
[339277902,1727434240021,-500.0,0.00019452,2]
[339277904,1727434240033,-1268.69,0.00019452,2]
[339277906,1727434240045,-500.0,0.00019452,2]
[339277908,1727434240058,-500.0,0.00019452,2]
[339277909,1727434240069,-500.0,0.00019452,2]
[339277910,1727434240080,-691.57,0.00019452,2]
[339277911,1727434240090,-500.0,0.00019452,2]
[339277912,1727434240099,-928.04,0.00019452,2]
[339277913,1727434240109,-167.730595,0.00019603,2]
[339277914,1727434240120,-2324.33672686,0.00019715,2]
[339277915,1727434240302,-101222.135423,0.00019716,3]
[339277916,1727434240313,-67960.0563665,0.00019716,3]
[339277917,1727434240323,-502.2351556,0.00019721,2]
[339277918,1727434240334,-1000.0,0.00019721,2]
[339277919,1727434240344,-500.0,0.00019726,2]
[339277920,1727434240354,-500.0,0.00019726,2]
[339277921,1727434240370,-200.0,0.00019726,2]
[339277922,1727434240380,-500.0,0.00019726,2]
[339277923,1727434240391,-500.0,0.00019726,2]
[339277924,1727434240402,-500.0,0.00019726,2]
[339277925,1727434240414,-523.32495011,0.00019726,2]
[339277926,1727434240424,-500.0,0.00019726,2]
[339277927,1727434240434,-516.77,0.00019726,2]
[339277928,1727434240444,-500.0,0.00019726,2]
[339277929,1727434240453,-500.0,0.00019726,2]
[339277930,1727434240463,-482.37469278,0.00019726,2]
[339277931,1727434240472,-500.0,0.00019726,2]
[339277932,1727434240482,-500.0,0.00019726,2]
[339277933,1727434240491,-612.42,0.00019726,2]
[339277934,1727434240501,-870.41,0.00019726,2]
[339277935,1727434240511,-1130.42,0.00019726,2]
[339277936,1727434240521,-7541.14,0.00019726,2]
[339277937,1727434240530,-640.51989,0.00019726,2]
[339277938,1727434240540,-1268.69,0.00019726,2]
[339277939,1727434240550,-500.0,0.00019726,2]
[339277940,1727434240559,-500.0,0.00019726,2]
[339277941,1727434240568,-500.0,0.00019726,2]
[339277942,1727434240578,-691.57,0.00019726,2]
[339277943,1727434240588,-500.0,0.00019726,2]
[339277944,1727434240597,-928.04,0.00019726,2]
[339277945,1727434240607,-153.0,0.00019815,2]
[339277946,1727434240617,-153.0,0.00019815,2]
[339277947,1727434240627,-153.0,0.00019815,2]
[339277948,1727434240637,-153.0,0.00019815,2]
[339277949,1727434240646,-153.0,0.00019815,2]
[339277950,1727434240655,-153.0,0.00019815,2]
[339277951,1727434240665,-153.0,0.00019815,2]
[339277952,1727434240674,-153.0,0.00019815,2]
[339277953,1727434240684,-153.0,0.00019815,2]
[339277954,1727434240693,-153.0,0.00019815,2]
[339277955,1727434240703,-153.0,0.00019815,2]
[339277956,1727434240713,-153.0,0.00019815,2]
[339277957,1727434240723,-153.0,0.00019815,2]
[339277958,1727434240732,-153.0,0.00019815,2]
[339277959,1727434240742,-153.0,0.00019815,2]
[339277960,1727434240751,-153.0,0.00019815,2]
[339277961,1727434240761,-153.0,0.00019815,2]
[339277962,1727434240771,-153.0,0.00019815,2]
[339277963,1727434240780,-153.0,0.00019815,2]
[339277964,1727434240790,-153.0,0.00019815,2]
[339277965,1727434240799,-153.0,0.00019815,2]
[339277966,1727434240811,-153.0,0.00019815,2]
[339277967,1727434240823,-153.0,0.00019815,2]
[339277968,1727434240833,-153.0,0.00019815,2]
[339277969,1727434240844,-153.0,0.00019815,2]
[339277970,1727434240854,-153.0,0.00019815,2]